bitfinex-derivatives/quotes_SOLF0:USTF0_20251219
["timestamp","ask_amount","ask_price","bid_price","bid_amount"]
[1766110767974,7.623,118.13,118.09,9.17]
[1766110768183,2.7523742,118.12,118.05,9.17]
[1766110768375,0.05455041,118.1,118.05,9.17]
[1766110768670,2.80692461,118.1,118.03,9.17]
[1766110770077,7.6255,118.09,118.03,16.7993]
[1766110770277,0.05693852,118.07,118.03,16.7993]
[1766110770776,0.05693852,118.07,118.03,9.17]
[1766110772065,7.6254,118.1,118.04,9.17]
[1766110772273,121.3323742,118.13,118.04,9.17]
[1766110773079,0.06506642,118.1,118.07,0.05833662]
[1766110775981,0.06506642,118.1,118.05,9.17]
[1766110777781,7.6255,118.09,118.05,9.17]
[1766110779378,7.6261,118.08,118.03,9.17]
[1766110779583,0.05863215,118.07,118.03,9.17]
[1766110783884,2.7523742,118.09,118.04,10.46]
[1766110784090,57.8054,118.1,118.04,10.46]
[1766110784590,50.18,118.1,118.04,10.46]
[1766110784890,0.05745897,118.08,118.06,0.06140053]
[1766110791099,7.68355897,118.08,118.06,0.06140053]
[1766110792600,0.05745897,118.08,118.06,0.06140053]
[1766110798702,2.7523742,118.07,118.02,10.46]
[1766110799610,0.0592217,118.06,118.02,10.46]
[1766110802112,0.0592217,118.06,118.02,18.0899]
[1766110802311,0.0592217,118.06,118.03,10.46]
[1766110802901,2.7523742,118.08,118.04,9.84]
[1766110803300,57.8054,118.1,118.04,9.84]
[1766110803917,0.05692227,118.08,118.06,0.0592217]
[1766110805117,0.05692227,118.08,118.04,9.84]
[1766110806615,7.68312227,118.08,118.04,9.84]
[1766110810822,7.68312227,118.08,118.02,17.4693]
[1766110811321,7.68312227,118.08,118.03,9.84]
[1766110813227,7.68312227,118.08,117.97,144.1672]
[1766110813228,2.7523742,118.05,117.95,121.5104742]
[1766110813415,0.00449508,118.01,117.95,121.5104742]
[1766110813614,0.00449508,118.01,117.97,7.6326]
[1766110814213,5.89937885,118.05,117.97,2.7523742]
[1766110814416,118.6242,118.09,117.97,2.7523742]
[1766110814417,2.7523742,118.06,117.97,121.4891742]
[1766110814919,10.3797742,118.06,118.0,7.6312]
[1766110815317,0.05744333,118.04,118.02,0.05449508]
[1766110823931,0.05744333,118.04,117.99,9.86]
[1766110823932,7.68614333,118.04,117.99,9.86]
[1766110827032,7.628,118.06,117.99,9.86]
[1766110828134,0.05898771,118.04,118.01,9.91725393]
[1766110836037,7.6272,118.07,118.01,9.91725393]
[1766110836735,7.6272,118.07,118.01,17.54775393]
[1766110837038,0.06408872,118.05,118.01,17.54775393]
[1766110838334,0.06408872,118.05,118.01,9.91725393]
[1766110838740,0.06408872,118.05,118.01,0.05725393]
[1766110839443,0.00408872,118.05,118.01,9.91725393]
[1766110840641,0.00408872,118.05,118.01,17.54765393]
[1766110841745,0.00408872,118.05,118.02,9.86]
[1766110842840,0.00408872,118.05,118.03,10.16]
[1766110843042,5.88894992,118.09,118.03,10.16]
[1766110843233,5.88894992,118.1,118.03,10.16]
[1766110843439,5.88894992,118.09,118.03,10.16]
[1766110843634,5.88894992,118.1,118.03,10.16]
[1766110843838,5.88894992,118.09,118.03,10.16]
[1766110844046,0.06066579,118.07,118.05,0.06309326]
[1766110846837,7.68746579,118.07,118.05,0.06309326]
[1766110847041,7.68746579,118.07,118.01,7.6306]
[1766110847042,0.06066579,118.07,118.01,10.16]
[1766110847240,6.01490937,118.07,118.01,10.16]
[1766110848043,6.01490937,118.07,118.03,0.06328979]
[1766110848648,13.58164358,118.06,118.03,0.06328979]
[1766110849151,7.6281,118.05,117.99,17.7919]
[1766110849341,7.6281,118.05,117.99,7.6319]
[1766110849545,13.58640178,118.05,118.0,10.16]
[1766110850145,0.06114599,118.04,118.0,10.16]
[1766110850350,0.06114599,118.04,118.01,0.05357933]
[1766110856355,6.02101347,118.04,118.01,0.05357933]
[1766110859852,7.6268,118.07,118.02,10.16]
[1766110860059,5.56,118.07,117.98,10.16]
[1766110860557,7.6275,118.06,118.0,10.16]
[1766110860959,0.05746631,118.04,118.02,0.06503159]
[1766110862960,55.76,118.08,118.02,10.73503159]
[1766110863161,5.55,118.07,118.02,0.06503159]
[1766110863360,13.1773,118.07,118.02,0.06503159]
[1766110863861,7.68651498,118.06,118.02,0.06503159]
[1766110864165,13.23651498,118.06,118.02,0.06503159]
[1766110866859,5.5,118.05,118.02,0.06503159]
[1766110868856,13.128,118.05,118.02,0.06503159]
[1766110892278,7.628,118.05,118.02,0.06503159]
[1766110892578,5.1,118.01,117.95,9.81]
[1766110893078,12.7307,118.01,117.95,9.81]
[1766110893489,0.0570979,117.99,117.97,0.05927536]
[1766110900086,5.0770979,117.99,117.93,17.4458]
[1766110900290,5.0770979,117.99,117.93,9.81]
[1766110901089,5.0770979,117.99,117.95,0.04844206]
[1766110901794,12.7090979,117.99,117.95,0.04844206]
[1766110902389,15.34102546,117.98,117.95,0.04844206]
[1766110902694,4.95,117.97,117.93,9.81]
[1766110903591,0.06043442,117.96,117.93,9.81]
[1766110903997,0.06043442,117.96,117.91,17.8471]
[1766110904398,4.94043442,117.96,117.91,10.21]
[1766110904901,0.06043442,117.96,117.91,10.21]
[1766110907902,0.06043442,117.96,117.91,17.847]
[1766110908298,0.06043442,117.96,117.92,10.21]
[1766110915712,0.00043442,117.96,117.92,17.8463]
[1766110916010,0.00043442,117.96,117.93,10.26633638]
[1766110921113,4.74043442,117.96,117.93,0.05633638]
[1766110921311,4.74043442,117.96,117.91,10.21]
[1766110922410,12.37433442,117.96,117.91,10.21]
[1766110922719,7.63433442,117.96,117.91,10.21]
[1766110923518,0.00043442,117.96,117.91,17.847]
[1766110923810,0.00043442,117.96,117.92,10.32]
[1766110924011,124.62614295,118.0,117.92,10.32]
[1766110924012,4.65,118.01,117.93,10.32]
[1766110925118,0.05830695,117.98,117.93,10.32]
[1766110925621,0.05830695,117.98,117.95,10.32]
[1766110925818,4.68830695,117.98,117.91,10.32]
[1766110926314,7.6332,117.97,117.92,10.32]
[1766110926521,4.62,117.97,117.92,10.32]
[1766110927522,12.2533,117.97,117.92,10.32]
[1766110929221,2.81663241,117.98,117.93,10.32]
[1766110929425,12.2222,117.99,117.93,10.32]
[1766110929426,0.06262674,117.97,117.93,10.32]
[1766110929627,9.81262674,117.97,117.88,2.75832546]
[1766110929822,0.05703292,117.94,117.88,2.75832546]
[1766110930627,0.05703292,117.94,117.89,7.6378]
[1766110931628,0.05703292,117.94,117.9,10.32]
[1766110932021,0.05703292,117.94,117.9,17.9577]
[1766110932220,2.75832546,117.96,117.91,10.38089158]
[1766110933230,0.05472792,117.95,117.91,10.38089158]
[1766110933630,7.68922792,117.95,117.91,10.38089158]
[1766110937643,17.7852,117.94,117.91,0.06089158]
[1766110939744,0.05472792,117.95,117.91,0.06089158]
[1766110940462,0.05472792,117.95,117.91,10.15089158]
[1766110942047,0.00472792,117.95,117.91,10.15089158]
[1766110942444,0.00472792,117.95,117.91,17.78769158]
[1766110942641,10.15,118.0,117.93,5.87]
[1766110943138,16.08550046,118.02,117.95,5.87]
[1766110943644,0.06273536,118.0,117.97,0.0582994]
[1766110954258,0.06273536,118.0,117.97,6.2182994]
[1766110954655,1.81145307,169.9,118.02,7.6295]
[1766110954656,10.15,118.1,118.02,7.6295]
[1766110954856,10.15,118.1,118.02,118.6887]
[1766110955057,10.15,118.1,118.0,168.9263]
[1766110955261,10.15,118.1,118.01,4.31223214]
[1766110955555,0.00416127,118.07,118.04,0.06340245]
[1766110955761,50.22,118.14,118.05,118.6578]
[1766110955762,10.15,118.14,118.05,118.6578]
[1766110955956,10.15,118.14,118.05,173.19003214]
[1766110956366,10.15,118.14,118.05,168.8778]
[1766110956758,0.0638549,118.11,118.08,0.05602061]
[1766110958267,10.2138549,118.11,118.05,50.22]
[1766110959269,10.2138549,118.11,118.07,0.05908924]
[1766110959467,10.15,118.1,118.05,50.22]
[1766110960462,10.15,118.1,118.06,0.05871732]
[1766110963971,0.0638549,118.11,118.06,0.05871732]
[1766110969279,0.0638549,118.11,118.06,7.68601732]
[1766110969873,10.75,118.1,118.06,0.05871732]
[1766110975185,7.6880549,118.11,118.06,0.05871732]
[1766110975186,0.0638549,118.11,118.06,0.05871732]
[1766110976179,10.8138549,118.11,118.01,118.6943]
[1766110976390,10.75,118.09,118.0,118.7043]
[1766110976685,10.75,118.09,118.0,123.01653214]
[1766110977480,60.93,118.11,118.04,7.6287]
[1766110977683,10.75,118.1,118.04,7.6287]
[1766110978585,0.05644109,118.08,118.06,0.05960927]
[1766110981689,10.75,118.12,118.06,0.05960927]
[1766110981887,10.75,118.12,118.03,168.8535]
[1766110982492,0.05954223,118.09,118.06,0.054553]
[1766110984593,11.25954223,118.09,118.06,0.004553]
[1766110985096,11.25954223,118.09,118.0,50.18]
[1766110985296,11.2,118.09,118.0,50.18]
[1766110985593,18.8267,118.07,118.01,7.6304]
[1766110985993,0.05409475,118.05,118.03,0.05623416]
[1766110993715,10.45959674,118.1,118.04,7.6287]
[1766110993716,12.02,118.09,118.04,7.6287]
[1766110993919,12.02,118.09,118.01,118.6945]
[1766110994609,12.02,118.09,118.03,7.6293]
[1766110994910,12.07422202,118.07,118.05,0.00023495]
[1766110995210,12.07422202,118.07,118.0,50.18]
[1766110995402,0.05422202,118.07,118.0,173.19683214]
[1766110995599,0.05422202,118.07,118.01,118.6991]
[1766110996009,0.05422202,118.07,118.03,0.06159623]
[1766110996610,12.02,118.11,118.05,7.628]
[1766110997209,18.1673646,118.11,118.05,7.628]
[1766110997412,12.02,118.1,118.05,7.628]
[1766110997611,0.05535094,118.09,118.06,0.06419656]
[1766110999105,18.1673646,118.13,118.06,0.06419656]
[1766110999512,12.02,118.12,118.06,0.06419656]
[1766111000011,0.05479564,118.1,118.06,0.06419656]
[1766111000413,7.6229,118.14,118.09,7.6254]
[1766111000414,18.1673646,118.14,118.09,7.6254]
[1766111001116,12.02,118.14,118.09,7.6254]
[1766111001510,0.06263811,118.13,118.1,0.05657143]
[1766111014221,18.1673646,118.18,118.11,2.7538116]
[1766111014422,12.02,118.18,118.11,2.7538116]
[1766111014624,12.02,118.2,118.15,7.6213]
[1766111015015,12.02,118.2,118.15,2.7538116]
[1766111015222,0.06388728,118.19,118.16,0.06202543]
[1766111015421,12.02,118.23,118.17,2.7538116]
[1766111015822,12.02,118.23,118.17,10.3737116]
[1766111016423,0.0637697,118.21,118.19,0.0632048]
[1766111018237,12.02,118.25,118.19,10.4359164]
[1766111018425,12.02,118.25,118.19,10.3727116]
[1766111019325,0.05768072,118.23,118.21,0.05840688]
[1766111020820,0.05768072,118.23,118.18,50.16]
[1766111020821,12.07768072,118.23,118.18,50.16]
[1766111021223,0.05768072,118.23,118.18,50.16]
[1766111021426,0.05768072,118.23,118.19,2.7538116]
[1766111021930,0.05768072,118.23,118.2,7.67440081]
[1766111023025,11.98,118.27,118.21,7.6176]
[1766111023233,11.98,118.27,118.21,10.3714116]
[1766111024128,0.06038489,118.25,118.23,0.06290561]
[1766111027622,12.04038489,118.25,118.23,0.00290561]
[1766111027824,12.04038489,118.25,118.19,2.7538116]
[1766111028024,0.06038489,118.25,118.19,2.7538116]
[1766111028234,0.06038489,118.25,118.21,2.7538116]
[1766111028425,0.06038489,118.25,118.2,2.7538116]
[1766111029030,0.06038489,118.25,118.21,0.06206686]
[1766111029627,0.00038489,118.25,118.22,2.7538116]
[1766111029830,11.98,118.29,118.23,50.12]
[1766111030633,11.98,118.29,118.23,57.7364]
[1766111030833,0.05799135,118.27,118.25,0.06400158]
[1766111032537,11.98,118.33,118.26,2.7538116]
[1766111033334,11.98,118.3,118.23,2.7538116]
[1766111033540,0.06344213,118.28,118.25,0.05805728]
[1766111033730,12.04344213,118.28,118.22,50.12]
[1766111034039,11.98,118.27,118.2,50.12]
[1766111034534,11.98,118.25,118.19,57.7385]
[1766111034740,0.05645345,118.23,118.21,0.0551567]
[1766111040039,11.98,118.25,118.21,7.6727567]
[1766111040243,11.98,118.27,118.21,0.0551567]
[1766111040546,2.7538116,118.29,118.22,2.7538116]
[1766111040547,11.98,118.29,118.22,2.7538116]
[1766111040943,11.98,118.29,118.23,7.6164]
[1766111041149,0.05890443,118.27,118.25,0.06466745]
[1766111042640,0.05890443,118.27,118.25,7.67976745]
[1766111044140,0.05890443,118.27,118.25,0.06466745]
[1766111046044,13.34890443,118.27,118.2,2.7538116]
[1766111046243,16.10271603,118.27,118.21,7.6177]
[1766111046747,13.34890443,118.27,118.21,7.6177]
[1766111046948,13.34890443,118.27,118.23,0.05460331]
[1766111059153,0.05890443,118.27,118.23,0.05460331]
[1766111060551,0.05890443,118.27,118.24,7.6157]
[1766111063554,15.27271603,118.27,118.23,0.00460331]
[1766111065150,12.46,118.26,118.23,0.00460331]
[1766111069746,12.46,118.26,118.23,7.62100331]
[1766111071158,0.05890443,118.27,118.23,7.62100331]
[1766111075364,0.05890443,118.27,118.24,7.6156]
[1766111081853,0.05890443,118.27,118.23,0.00460331]
[1766111082455,0.05890443,118.27,118.24,7.6156]
[1766111083862,12.46,118.3,118.25,7.6151]
[1766111084062,18.43623042,118.3,118.25,7.6151]
[1766111084359,13.16,118.32,118.24,54.39363691]
[1766111084553,5.97623042,118.31,118.24,54.39363691]
[1766111084959,0.05915307,118.29,118.26,7.66779242]
[1766111085261,0.05915307,118.29,118.26,0.05389242]
[1766111085970,19.13623042,118.32,118.26,0.05389242]
[1766111086168,13.16,118.32,118.26,0.05389242]
[1766111086370,5.97623042,118.33,118.26,0.05389242]
[1766111086571,19.13623042,118.33,118.26,0.05389242]
[1766111086776,0.05370216,118.31,118.26,0.05389242]
[1766111087776,0.05370216,118.31,118.28,7.6132]
[1766111088167,0.05370216,118.31,118.28,57.7132]
[1766111089879,0.05370216,118.31,118.28,50.1]
[1766111092376,0.00370216,118.31,118.28,57.7128]
[1766111092573,122.63203691,118.37,118.28,172.81923691]
[1766111092574,13.16,118.35,118.28,172.81923691]
[1766111092886,13.16,118.37,118.29,118.418]
[1766111093079,13.16,118.39,118.3,122.69793691]
[1766111093477,13.16,118.38,118.3,122.69793691]
[1766111093681,0.05913879,118.36,118.33,0.05886481]
[1766111093878,0.05913879,118.36,118.33,50.13886481]
[1766111094675,13.21913879,118.36,118.33,50.13886481]
[1766111094883,0.05913879,118.36,118.33,50.13886481]
[1766111095782,13.21913879,118.36,118.33,50.13886481]
[1766111096086,13.21913879,118.36,118.33,0.05886481]
[1766111097174,19.13623042,118.41,118.33,0.05886481]
[1766111097372,13.16,118.41,118.31,54.37363691]
[1766111097780,13.16,118.41,118.33,7.6099]
[1766111098284,0.05994792,118.38,118.36,0.05953895]
[1766111100087,13.16,118.41,118.36,7.66743895]
[1766111100287,13.16,118.41,118.35,50.08]
[1766111100993,7.6062,118.39,118.32,7.6101]
[1766111101288,0.05348731,118.37,118.34,0.06260681]
[1766111102184,13.16,118.4,118.34,0.06260681]
[1766111102487,128.54216733,118.44,118.34,0.06260681]
[1766111102488,13.16,118.42,118.34,0.06260681]
[1766111102682,13.16,118.42,118.33,122.66933691]
[1766111102880,13.63,118.41,118.32,172.73623691]
[1766111103085,13.63,118.45,118.34,122.65923691]
[1766111103285,0.06476539,118.41,118.38,0.06110214]
[1766111103590,0.06476539,118.41,118.38,0.05828603]
[1766111105591,13.69476539,118.41,118.32,122.67623691]
[1766111105786,13.63,118.39,118.29,4.29363691]
[1766111106192,13.63,118.35,118.29,7.6119]
[1766111106584,0.053896,118.33,118.31,0.05668016]
[1766111106880,21.2374,118.38,118.31,0.05668016]
[1766111107193,13.63,118.38,118.31,0.05668016]
[1766111108094,0.05558623,118.36,118.31,0.05668016]
[1766111108295,0.05558623,118.36,118.32,0.05849693]
[1766111108593,0.05872421,118.35,118.32,0.05849693]
[1766111110096,13.63,118.38,118.32,0.05849693]
[1766111110283,21.2381,118.36,118.29,57.6725]
[1766111110484,13.63,118.36,118.29,57.6725]
[1766111110688,13.63,118.36,118.29,50.06]
[1766111110895,0.0397269,118.34,118.31,0.05539983]
[1766111113486,0.0397269,118.34,118.31,7.66659983]
[1766111113996,13.63,118.36,118.31,7.66659983]
[1766111114197,54.35363691,118.4,118.31,0.05539983]
[1766111114198,14.65,118.38,118.31,0.05539983]
[1766111114386,14.65,118.38,118.3,118.4048]
[1766111114884,14.65,118.38,118.31,7.6107]
[1766111115089,14.65,118.38,118.33,0.05496931]
[1766111116000,14.65,118.38,118.33,7.66496931]
[1766111116292,14.65,118.38,118.33,0.00496931]
[1766111117098,22.2568,118.38,118.33,0.00496931]
[1766111117301,14.7,118.37,118.33,0.00496931]
[1766111118104,22.3075,118.37,118.33,0.00496931]
[1766111118296,14.65,118.36,118.33,0.00496931]
[1766111120002,0.05,118.37,118.33,0.00496931]
[1766111120197,0.05,118.37,118.33,7.61486931]
[1766111121297,0.05,118.37,118.33,0.00496931]
[1766111122501,0.05,118.37,118.33,7.61476931]
[1766111124106,14.65,118.4,118.33,4.29860622]
[1766111125507,14.65,118.4,118.35,7.6085]
[1766111125706,14.65,118.4,118.36,0.0628158]
[1766111128208,22.2555,118.4,118.36,0.0028158]
[1766111128408,14.65,118.39,118.36,0.0028158]
[1766111129108,14.71,118.39,118.36,0.0028158]
[1766111132708,14.65,118.38,118.3,2.74147898]
[1766111133214,14.65,118.37,118.3,2.74147898]
[1766111133613,14.65,118.37,118.28,118.4264]
[1766111133614,0.0613657,118.35,118.32,2.79986763]
[1766111134711,14.7113657,118.35,118.3,2.74147898]
[1766111135015,14.65,118.35,118.3,2.74147898]
[1766111135714,14.65,118.35,118.29,7.6123]
[1766111135916,0.05441433,118.34,118.31,0.06349911]
[1766111146623,0.05441433,118.34,118.31,7.67459911]
[1766111147818,5.93715237,118.38,118.32,7.6105]
[1766111148923,0.05470238,118.36,118.32,7.6105]
[1766111150019,0.05470238,118.36,118.33,0.05676833]
[1766111150815,5.99185475,118.36,118.3,7.6113]
[1766111151020,14.88,118.35,118.3,7.6113]
[1766111151925,14.88,118.35,118.31,0.06172688]
[1766111152720,14.88,118.33,118.26,8.93]
[1766111153724,0.06075,118.31,118.28,0.05540141]
[1766111155928,14.94075,118.31,118.25,22.2545]
[1766111156526,14.94075,118.31,118.25,7.6145]
[1766111156731,14.94075,118.31,118.23,14.64]
[1766111156732,14.88,118.29,118.23,7.6158]
[1766111156925,0.06425604,118.27,118.25,0.06353557]
[1766111160325,14.88,118.31,118.25,14.70353557]
[1766111160531,14.88,118.31,118.25,17.44501455]
[1766111160737,14.88,118.31,118.25,0.06353557]
[1766111161330,0.06168688,118.29,118.25,0.06353557]
[1766111164236,0.06168688,118.29,118.25,7.67843557]
[1766111166037,15.52168688,118.29,118.25,0.06353557]
[1766111171737,15.52168688,118.29,118.25,7.67863557]
[1766111172143,0.06168688,118.29,118.25,7.67863557]
[1766111174948,15.99,118.33,118.27,18.45147898]
[1766111175944,0.06469994,118.31,118.29,0.05740569]
[1766111176338,0.06469994,118.31,118.26,2.74147898]
[1766111176339,16.05469994,118.31,118.26,2.74147898]
[1766111176540,16.05469994,118.31,118.25,68.53147898]
[1766111177445,16.05469994,118.31,118.27,0.06424122]
[1766111178248,0.06469994,118.31,118.27,18.5157202]
[1766111179543,0.06469994,118.31,118.28,7.6132]
[1766111179935,0.06469994,118.31,118.28,23.3232]
[1766111180140,15.99,118.35,118.28,23.3232]
[1766111180648,15.99,118.34,118.29,7.6125]
[1766111181144,0.06065828,118.33,118.3,0.05359951]
[1766111181346,0.06065828,118.33,118.3,7.66549951]
[1766111184538,15.99,118.36,118.3,0.05359951]
[1766111184743,15.99,118.36,118.3,15.76359951]
[1766111185552,0.0536849,118.34,118.32,7.6106]
[1766111185751,0.0536849,118.34,118.32,7.66818289]
[1766111186452,0.0536849,118.34,118.32,0.05758289]
[1766111208975,0.0036849,118.34,118.32,0.05758289]
[1766111209271,16.18,118.39,118.32,16.29758289]
[1766111209485,16.18,118.39,118.32,16.24]
[1766111210374,0.04995355,118.37,118.34,0.06309998]
[1766111210675,0.04995355,118.37,118.34,7.67229998]
[1766111213680,0.04995355,118.37,118.34,23.91229998]
[1766111214078,0.04995355,118.37,118.34,0.06309998]
[1766111214873,0.04995355,118.37,118.3,16.24]
[1766111214874,16.22995355,118.37,118.3,16.24]
[1766111215876,16.22995355,118.37,118.32,16.299542]
[1766111215877,0.04995355,118.37,118.32,16.299542]
[1766111216078,0.064226,118.36,118.32,16.299542]
[1766111216669,0.064226,118.36,118.33,7.6099]
[1766111216879,0.064226,118.36,118.32,16.299542]
[1766111218175,0.064226,118.36,118.32,66.339542]
[1766111218576,0.064226,118.36,118.34,7.6092]
[1766111220083,22.11578555,118.4,118.35,16.24]
[1766111220383,16.18,118.4,118.35,16.24]
[1766111220582,22.11578555,118.4,118.35,16.24]
[1766111221084,0.04882753,118.39,118.36,0.05836589]
[1766111221274,16.22882753,118.39,118.36,0.05836589]
[1766111238496,0.04882753,118.39,118.36,0.05836589]
[1766111238690,55.99578555,118.42,118.36,17.21836589]
[1766111238895,16.33,118.43,118.36,17.21836589]
[1766111239097,22.26578555,118.43,118.36,17.21836589]
[1766111239284,16.33,118.43,118.36,17.21836589]
[1766111239688,16.33,118.43,118.37,21.44766895]
[1766111239989,16.33,118.43,118.39,0.05919189]
[1766111240604,16.33,118.43,118.39,7.66529189]
[1766111241603,16.33,118.43,118.39,24.82529189]
[1766111241898,16.33,118.45,118.39,24.82529189]
[1766111243797,16.33,118.45,118.4,7.6053]
[1766111245205,16.33,118.45,118.41,7.6047]
[1766111245402,16.33,118.45,118.42,0.06419278]
[1766111245604,16.33,118.47,118.42,17.22419278]
[1766111246304,16.33,118.47,118.42,24.82839278]
[1766111247301,16.33,118.49,118.43,24.7633]
[1766111247500,16.33,118.49,118.45,0.06063148]
[1766111247801,23.9297,118.49,118.45,0.06063148]
[1766111248006,16.33,118.48,118.41,17.16]
[1766111248199,16.33,118.48,118.41,21.44766895]
[1766111248905,0.05677565,118.46,118.43,0.06022303]
[1766111249402,0.05677565,118.46,118.43,7.66362303]
[1766111250000,0.05677565,118.46,118.43,24.82362303]
[1766111250202,16.33,118.5,118.44,24.7629]
[1766111251301,16.33,118.5,118.46,0.06348231]
[1766111252906,23.9291,118.5,118.46,0.06348231]
[1766111253204,16.33,118.49,118.46,0.06348231]
[1766111258309,16.33,118.49,118.46,0.00348231]
[1766111258505,16.33,118.51,118.46,17.16348231]
[1766111258811,16.33,118.53,118.46,19.90125701]
[1766111259108,16.33,118.55,118.5,2.7377747]
[1766111259406,0.06056633,118.54,118.51,17.21984886]
[1766111259606,0.06339119,118.54,118.51,17.2174248]
[1766111259805,16.33,118.59,118.52,19.8977747]
[1766111260009,16.33,118.63,118.55,17.16]
[1766111260596,16.33,118.59,118.5,17.16]
[1766111260804,16.33,118.59,118.53,0.06393034]
[1766111261211,134.4488,118.59,118.53,0.00393034]
[1766111261403,19.0677747,118.58,118.53,0.00393034]
[1766111261598,16.33,118.56,118.53,0.00393034]
[1766111261800,16.33,118.55,118.46,52.7377747]
[1766111262006,16.33,118.55,118.45,17.16]
[1766111262007,16.33,118.53,118.45,17.16]
[1766111262808,0.060078,118.5,118.48,0.06507641]
[1766111263118,16.920078,118.5,118.44,2.7377747]
[1766111263302,16.920078,118.5,118.44,19.2877747]
[1766111264010,16.920078,118.5,118.46,0.06432743]
[1766111267114,16.920078,118.5,118.46,16.61432743]
[1766111267115,0.060078,118.5,118.46,16.61432743]
[1766111270628,16.920078,118.5,118.46,0.06432743]
[1766111271717,0.060078,118.5,118.46,0.06432743]
[1766111272216,16.920078,118.5,118.46,0.06432743]
[1766111280321,16.920078,118.5,118.46,7.66592743]
[1766111281338,0.060078,118.5,118.47,7.6008]
[1766111282826,52.7177747,118.55,118.48,25.6003]
[1766111282827,17.96,118.54,118.48,25.6003]
[1766111283021,17.96,118.54,118.48,28.3380747]
[1766111283829,0.06097663,118.52,118.5,0.05725647]
[1766111286925,18.02097663,118.52,118.47,7.6009]
[1766111287730,18.02097663,118.52,118.46,28.3393747]
[1766111287927,18.02097663,118.52,118.48,0.05599526]
[1766111288124,17.96,118.5,118.43,20.7377747]
[1766111288325,17.96,118.5,118.44,7.6029]
[1766111289125,18.02384083,118.48,118.43,18.0]
[1766111290138,18.02384083,118.48,118.44,0.06331096]
[1766111291229,0.06384083,118.48,118.44,18.06331096]
[1766111292635,0.06384083,118.48,118.45,7.6021]
[1766111293332,0.06384083,118.48,118.44,18.06331096]
[1766111294033,0.06384083,118.48,118.44,0.06331096]
[1766111294330,16.93384083,118.48,118.44,0.00331096]
[1766111294740,24.53424083,118.48,118.44,0.00331096]
[1766111295038,16.87,118.47,118.44,0.00331096]
[1766111295638,24.471,118.47,118.44,0.00331096]
[1766111295840,16.87,118.46,118.44,0.00331096]
[1766111296935,16.87,118.45,118.4,52.7177747]
[1766111297142,16.87,118.45,118.4,49.98]
[1766111298041,0.059412,118.44,118.41,0.0570609]
[1766111300342,0.059412,118.44,118.41,18.0270609]
[1766111301036,0.059412,118.44,118.41,25.6316609]
[1766111301241,24.4697,118.49,118.42,20.7077747]
[1766111301437,16.87,118.49,118.42,20.7077747]
[1766111302043,16.87,118.49,118.44,25.5727]
[1766111302252,0.05484083,118.48,118.45,0.06493111]
[1766111304951,16.92484083,118.48,118.45,0.06493111]
[1766111305135,0.05484083,118.48,118.45,0.06493111]
[1766111307449,16.92484083,118.48,118.45,0.00493111]
[1766111310251,0.05484083,118.48,118.45,0.00493111]
[1766111313056,0.05484083,118.48,118.45,7.60713111]
[1766111313758,0.05484083,118.48,118.45,0.00493111]
[1766111318861,0.05484083,118.48,118.45,7.60683111]
[1766111319661,0.05484083,118.48,118.45,0.00493111]
[1766111319860,16.92484083,118.48,118.45,0.00493111]
[1766111322367,16.92484083,118.48,118.42,67.97]
[1766111322553,16.92484083,118.48,118.42,50.0]
[1766111323161,16.99,118.47,118.42,50.0]
[1766111323358,16.99,118.47,118.43,0.05556453]
[1766111327756,17.04484083,118.48,118.43,0.05556453]
[1766111328378,16.99,118.47,118.43,0.05556453]
[1766111332068,24.591,118.47,118.43,0.05556453]
[1766111332867,16.99,118.47,118.43,0.05556453]
[1766111333664,16.99,118.46,118.41,7.6045]
[1766111334570,0.05847693,118.45,118.42,0.06217665]
[1766111341267,21.32657673,118.45,118.35,17.77]
[1766111341464,16.99,118.44,118.35,17.77]
[1766111342363,0.05777219,118.41,118.38,0.05725134]
[1766111342570,0.05777219,118.41,118.38,0.06242467]
[1766111344466,16.79777219,118.41,118.38,0.06242467]